bitfinex/quotes_ETHUSD_20250810
["timestamp","ask_amount","ask_price","bid_price","bid_amount"]
[1754798430928,1.88484239,4243.9,4243.8,0.001]
[1754798431145,5.49384239,4243.9,4243.8,0.9074]
[1754798431354,5.49384239,4243.9,4243.8,1.12738647]
[1754798431711,5.49384239,4243.9,4243.8,0.22098647]
[1754798431911,5.49384239,4243.9,4243.8,0.22097717]
[1754798432342,6.10996127,4243.9,4243.8,0.22097717]
[1754798432652,5.49384239,4243.9,4243.8,0.22097717]
[1754798432937,5.49384239,4243.9,4243.8,0.67547717]
[1754798433353,9.88574239,4243.9,4243.8,1e-08]
[1754798434311,9.42314239,4243.9,4243.8,1e-08]
[1754798434547,10.04527529,4243.9,4243.8,1e-08]
[1754798434731,3.55,4243.8,4243.3,0.001]
[1754798434933,1.76753393,4243.2,4243.0,0.001]
[1754798435134,5.37653393,4243.2,4243.0,0.001]
[1754798435720,4.76757559,4243.1,4242.6,0.001]
[1754798435931,1.76774223,4242.7,4242.6,0.001]
[1754798436128,5.37674223,4242.7,4242.6,0.001]
[1754798437611,5.37674223,4242.7,4242.5,0.001]
[1754798437612,1.7677839,4242.6,4242.5,0.001]
[1754798437948,6.2772839,4242.6,4242.5,1e-08]
[1754798439029,5.3177839,4242.6,4242.5,1e-08]
[1754798439332,6.6599524,4242.6,4242.5,1e-08]
[1754798440320,7.6194524,4242.6,4242.5,1e-08]
[1754798443120,7.7138344,4242.6,4242.5,1e-08]
[1754798443323,7.8314344,4242.6,4242.5,1e-08]
[1754798446021,8.00439321,4242.6,4242.5,1e-08]
[1754798446665,16.17329114,4242.6,4242.5,1e-08]
[1754798447755,16.17329114,4242.6,4241.6,0.041]
[1754798447756,2.31815899,4241.7,4241.6,1e-08]
[1754798447947,9.04575899,4241.7,4241.6,1e-08]
[1754798448540,9.98055899,4241.7,4241.6,1e-08]
[1754798448844,20.58131375,4241.7,4241.6,1e-08]
[1754798450066,20.58131375,4241.7,4240.3,0.4364]
[1754798450067,2.31832574,4241.3,4241.2,1e-08]
[1754798450267,8.92832574,4241.3,4241.2,1e-08]
[1754798450567,8.92832574,4241.3,4241.2,0.43640001]
[1754798450774,8.92832574,4241.3,4241.2,1e-08]
[1754798451069,9.04592574,4241.3,4241.2,1e-08]
[1754798451370,11.28563957,4241.3,4241.2,1e-08]
[1754798451534,11.72203957,4241.3,4241.2,1e-08]
[1754798452764,10.78723957,4241.3,4241.2,1e-08]
[1754798452934,11.72203957,4241.3,4241.2,1e-08]
[1754798455474,10.78723957,4241.3,4241.2,1e-08]
[1754798456678,10.78723957,4241.3,4241.1,1e-08]
[1754798456679,4.76836744,4241.2,4241.1,1e-08]
[1754798456893,7.98555521,4241.2,4241.1,1e-08]
[1754798457063,7.16835521,4241.2,4241.1,1e-08]
[1754798457254,5.49596744,4241.2,4241.1,0.89760001]
[1754798457552,5.49596744,4241.2,4241.1,1.11674376]
[1754798458153,1.76836744,4241.2,4241.1,1.11674376]
[1754798458348,5.49796744,4241.2,4241.1,1.11674376]
[1754798458773,9.04796744,4241.2,4241.1,0.21914376]
[1754798458976,10.42959432,4241.2,4241.1,0.21914376]
[1754798459184,1.76853423,4240.8,4240.7,0.8986]
[1754798459383,6.04813423,4240.8,4240.7,0.8986]
[1754798459597,6.04813423,4240.8,4240.7,0.001]
[1754798459891,6.04813423,4240.8,4240.7,0.8986]
[1754798460097,1.88613423,4240.8,4240.7,0.8986]
[1754798460603,5.50313423,4240.8,4240.7,0.001]
[1754798460768,1.76853423,4240.8,4240.7,0.8986]
[1754798460952,5.50313423,4240.8,4240.7,0.8986]
[1754798461656,5.50313423,4240.8,4240.7,0.4374]
[1754798462402,5.50313423,4240.8,4240.7,0.8986]
[1754798463983,5.50313423,4240.8,4240.7,0.4374]
[1754798465156,5.50313423,4240.8,4240.7,0.001]
[1754798465354,1.76892699,4239.9,4239.8,0.4364]
[1754798465558,5.50252699,4239.9,4239.8,0.4364]
[1754798465760,1.76899308,4239.7,4239.6,0.04]
[1754798465992,5.38399308,4239.7,4239.6,0.04]
[1754798466170,5.38399308,4239.7,4239.6,0.4764]
[1754798466374,1.88651717,4239.9,4239.6,0.9376]
[1754798466768,3.621,4239.8,4239.7,0.8976]
[1754798467092,0.1176,4239.9,4239.7,0.8976]
[1754798467392,0.1176,4239.9,4239.8,0.8976]
[1754798468571,1.88650964,4239.9,4239.8,0.8976]
[1754798469060,1.88650964,4239.9,4239.6,0.04]
[1754798469061,1.76899308,4239.7,4239.6,0.04]
[1754798469261,5.50651997,4239.9,4239.7,0.4612]
[1754798469490,0.1176,4239.9,4239.7,0.4612]
[1754798469997,0.1176,4239.9,4239.8,0.4364]
[1754798470491,0.1176,4239.9,4239.8,0.8976]
[1754798470791,0.1176,4240.1,4239.8,0.8976]
[1754798470963,0.1176,4240.1,4239.9,0.8976]
[1754798471161,0.1176,4240.1,4240.0,0.2202158]
[1754798471362,0.1176,4240.1,4240.0,1.1178158]
[1754798472793,0.1176,4240.4,4240.0,1.1178158]
[1754798473001,0.1176,4240.4,4240.1,1.41824772]
[1754798473160,0.1176,4240.4,4240.2,0.2202158]
[1754798473366,0.1176,4240.4,4240.3,0.2202158]
[1754798473786,1.88630106,4240.4,4240.3,1.1178158]
[1754798473988,1.88630106,4240.4,4240.3,0.6566158]
[1754798474897,1.88630106,4240.4,4240.3,0.2202158]
[1754798476004,2.61349327,4240.4,4240.3,0.2202158]
[1754798476470,2.31874277,4240.3,4239.6,0.04]
[1754798476667,1.76895136,4239.8,4239.7,0.22067049]
[1754798476901,1.88655136,4239.8,4239.7,0.22067049]
[1754798477566,2.613596,4239.8,4239.7,0.22067049]
[1754798477978,1.76899308,4239.7,4239.6,0.04]
[1754798479485,1.76899308,4239.7,4239.6,0.041]
[1754798480205,5.38299308,4239.7,4239.6,0.041]
[1754798480927,5.38299308,4239.7,4239.6,1e-08]
[1754798480928,9.33349308,4239.7,4239.6,1e-08]
[1754798481105,10.31004149,4239.7,4239.6,1e-08]
[1754798482275,10.86004149,4239.7,4239.6,1e-08]
[1754798482979,9.90854149,4239.7,4239.6,1e-08]
[1754798483179,1.76899308,4239.7,4239.6,1e-08]
[1754798483577,3.63,4240.4,4239.6,0.94720001]
[1754798483896,1.76899308,4239.7,4239.6,0.94720001]
[1754798484098,1.76899308,4239.7,4239.6,1e-08]
[1754798485093,5.40799308,4239.7,4239.6,1e-08]
[1754798485297,0.63376545,4241.0,4239.6,0.94720001]
[1754798485595,1.76895136,4239.8,4239.7,0.9472]
[1754798485794,1.76899308,4239.7,4239.6,1e-08]
[1754798486199,0.002,4241.1,4239.6,0.94720001]
[1754798486402,1.76868555,4240.5,4239.7,0.9472]
[1754798486598,1.76868555,4240.5,4239.6,1e-08]
[1754798486599,1.76866409,4240.5,4239.8,0.9472]
[1754798486800,1.7685312,4240.9,4239.9,0.9472]
[1754798487007,0.002,4241.1,4239.6,0.02358714]
[1754798487206,1.76865678,4240.6,4240.0,0.9472]
[1754798487506,0.002,4241.1,4240.1,0.9472]
[1754798487507,1.77041621,4241.1,4240.1,0.9472]
[1754798487712,1.76874277,4240.3,4240.2,0.9472]
[1754798487914,0.002,4241.1,4240.2,2.71598233]
[1754798487915,1.77041463,4241.1,4240.2,2.71598233]
[1754798488115,0.002,4241.1,4240.3,0.9472]
[1754798488301,1.76849997,4240.9,4240.4,0.9472]
[1754798488615,1.76849997,4240.9,4240.5,1.16746471]
[1754798488789,0.002,4241.1,4240.6,1.16746471]
[1754798489117,0.002,4241.1,4240.7,0.22026471]
[1754798489304,1.76849253,4240.9,4240.8,0.22026471]
[1754798489693,1.76849253,4240.9,4240.8,1.16746471]
[1754798490589,0.002,4241.1,4240.8,1.16746471]
[1754798490912,1.7704169,4241.1,4240.9,1.16746471]
[1754798491113,1.7704169,4241.1,4241.0,1.16746471]
[1754798491423,0.002,4241.1,4241.0,11.25661734]
[1754798491592,0.002,4241.1,4241.0,14.1507299]
[1754798492294,0.002,4241.1,4241.0,14.1504473]
[1754798492499,0.002,4241.1,4241.0,17.9228073]
[1754798493030,0.002,4241.1,4241.0,20.9228073]
[1754798493230,0.002,4241.1,4241.0,21.5904073]
[1754798493527,0.002,4241.2,4241.1,5.31840913]
[1754798493696,0.002,4241.2,4241.1,7.26154672]
[1754798493899,0.002,4241.6,4241.5,1.76824236]
[1754798494107,0.002,4241.6,4241.5,14.32422447]
[1754798494300,0.002,4241.6,4241.5,15.38902447]
[1754798495395,0.002,4241.6,4241.5,6.0524015]
[1754798495629,0.002,4241.6,4241.5,16.17147192]
[1754798496131,0.002,4241.6,4241.5,16.16947192]
[1754798496331,0.002,4241.6,4241.5,16.26382092]
[1754798496632,0.002,4241.6,4241.5,14.49557856]
[1754798497137,0.002,4241.6,4241.5,16.26382092]
[1754798500938,1.77020067,4241.6,4241.5,0.21935914]
[1754798501325,2.72070067,4241.6,4241.5,3.89235914]
[1754798501530,1.77020067,4241.6,4241.5,3.89235914]
[1754798502629,1.77020067,4241.6,4241.5,3.89135914]
[1754798502630,2.72070067,4241.6,4241.5,3.89135914]
[1754798503043,2.72070067,4241.6,4241.5,0.21935914]
[1754798503341,2.72070067,4241.6,4241.5,3.89135914]
[1754798503342,3.18534258,4241.6,4241.5,3.89135914]
[1754798503639,3.18534258,4241.6,4241.5,3.672]
[1754798504705,1.41714191,4241.6,4240.2,0.6163]
[1754798504927,1.76868691,4240.5,4240.3,3.89091448]
[1754798505143,1.76868691,4240.5,4240.4,0.21891448]
[1754798506108,0.1176,4240.7,4240.4,0.21891448]
[1754798506312,1.76861764,4240.6,4240.5,0.21891448]
[1754798507912,0.1176,4240.7,4240.5,0.21891448]
[1754798508112,0.1176,4240.7,4240.6,0.21891448]
[1754798508553,1.88617594,4240.7,4240.6,0.21891448]
[1754798509047,0.1176,4240.7,4240.6,0.21891448]
[1754798509418,1.76845604,4241.0,4240.6,1.58627593]
[1754798509623,1.76845604,4241.0,4240.7,3.88391448]
[1754798509924,0.8958,4241.5,4240.8,3.88291448]
[1754798510140,1.76845083,4241.0,4240.9,0.21891448]
[1754798510522,1.76845083,4241.0,4239.4,0.4427]
[1754798510523,1.76897821,4239.8,4239.4,0.4427]
[1754798510722,1.76895136,4239.8,4239.7,3.664]
[1754798512646,1.7627021,4239.8,4239.7,3.664]
[1754798512851,1.76895136,4239.8,4239.7,3.662]
[1754798513161,1.76899308,4239.7,4239.4,0.4427]
[1754798513320,1.76899308,4239.7,4239.6,3.66200001]
[1754798515268,1.76899308,4239.7,4239.6,1e-08]
[1754798515787,1.76899308,4239.7,4239.6,3.66000001]
[1754798517864,1.76899308,4239.7,4239.6,3.65800001]
[1754798518071,1.76899308,4239.7,4239.6,1e-08]
[1754798518374,3.03034422,4239.7,4239.6,1e-08]
[1754798518750,3.58034422,4239.7,4239.6,3.65900001]
[1754798518951,1.76916,4239.3,4239.2,0.001]
[1754798519151,1.88676,4239.3,4239.2,3.66]
[1754798519347,3.23772651,4239.3,4239.2,3.66]
[1754798519740,2.34192651,4239.3,4239.2,3.66]
[1754798519940,1.88676,4239.3,4239.2,3.66]
[1754798520746,2.78256,4239.3,4239.2,3.659]
[1754798520937,2.78256,4239.3,4239.2,0.001]
[1754798521403,1.88676,4239.3,4239.2,0.001]
[1754798522442,1.88676,4239.3,4239.2,0.22019938]
[1754798522643,2.55234651,4239.3,4239.2,0.22019938]
[1754798524193,1.88676,4239.3,4239.2,0.22019938]
[1754798525373,1.88676,4239.3,4239.2,3.87719938]
[1754798528252,1.88676,4239.3,4239.2,4.81119938]
[1754798528582,1.88676,4239.3,4239.2,0.22019938]
[1754798528890,1.88676,4239.3,4239.2,3.87519938]
[1754798529067,2.34192651,4239.3,4239.2,3.87519938]
[1754798531475,1.88676,4239.3,4239.2,3.87519938]
[1754798531685,1.88676,4239.3,4239.2,3.87572868]
[1754798531977,1.88676,4239.3,4239.2,0.22072868]
[1754798532169,2.78256,4239.3,4239.2,0.22072868]
[1754798533159,2.33826,4239.3,4239.2,0.22072868]
[1754798533375,2.66329651,4239.3,4239.2,0.22072868]
[1754798534598,2.66329651,4239.3,4239.2,0.22091871]
[1754798534759,3.55909651,4239.3,4239.2,0.22091871]
[1754798534946,6.55909651,4239.3,4239.2,0.22091871]
[1754798535979,10.21409651,4239.3,4239.2,0.22091871]
[1754798536351,10.21409651,4239.3,4238.7,0.001]
[1754798536352,1.76936868,4238.8,4238.7,0.001]
[1754798536552,5.89583687,4238.8,4238.7,0.001]
[1754798536754,1.76953567,4238.4,4238.3,0.001]
[1754798536973,7.3226,4238.4,4237.6,0.04]
[1754798537185,1.88742797,4237.7,4237.6,0.04]
[1754798537691,0.1176,4237.7,4237.6,1.0015]
[1754798537989,1.88742797,4237.7,4237.6,1.0015]
[1754798538195,0.1176,4237.7,4237.6,1.0015]
[1754798538494,1.88742797,4237.7,4237.6,1.0015]
[1754798539459,1.88742797,4237.7,4237.6,0.5076]
[1754798539764,1.88742797,4237.7,4237.6,0.04]
[1754798541991,6.97038194,4237.7,4237.6,0.04]
[1754798542671,10.52038194,4237.7,4237.6,0.04]
[1754798543187,10.52038194,4237.7,4237.6,1e-08]
[1754798543387,10.51938194,4237.7,4237.6,1e-08]
[1754798543690,9.96838194,4237.7,4237.6,1e-08]
[1754798544189,10.51838194,4237.7,4237.6,1e-08]
[1754798544366,6.86438194,4237.7,4237.6,1e-08]
[1754798544567,10.51838194,4237.7,4237.6,1e-08]
[1754798546297,9.60268194,4237.7,4237.6,1e-08]
[1754798546781,5.94968194,4237.7,4237.6,1e-08]
[1754798547091,10.51838194,4237.7,4237.6,1e-08]
[1754798547279,9.05268194,4237.7,4237.6,1e-08]
[1754798547688,10.51738194,4237.7,4237.6,1e-08]
[1754798548480,10.06308194,4237.7,4237.6,1e-08]
[1754798548688,10.51738194,4237.7,4237.6,1e-08]
[1754798549400,9.05268194,4237.7,4237.6,1e-08]
[1754798549696,1.77020392,4236.8,4236.7,1e-08]
[1754798549867,8.53960392,4236.8,4236.7,1e-08]
[1754798550268,5.53960392,4236.8,4236.7,1e-08]
[1754798550497,1.88860392,4236.8,4236.7,1e-08]
[1754798550676,5.53960392,4236.8,4236.7,1e-08]
[1754798551192,5.53960392,4236.8,4236.7,0.46760001]
[1754798552464,5.53960392,4236.8,4236.7,1e-08]
[1754798552663,5.53960392,4236.8,4236.7,0.46760001]
[1754798553094,5.53760392,4236.8,4236.7,0.96150001]
[1754798553269,5.53760392,4236.8,4236.7,0.46760001]
[1754798553471,5.53760392,4236.8,4236.7,1e-08]
[1754798553889,5.53760392,4236.8,4236.7,0.96150001]
[1754798555082,0.1184,4237.0,4236.7,0.96150001]
[1754798555273,1.77016214,4236.9,4236.8,1.23867785]
[1754798555586,1.77016214,4236.9,4236.8,0.9615]
[1754798555786,1.77016214,4236.9,4236.8,0.4676]
[1754798556021,5.41816214,4236.9,4236.8,0.9615]
[1754798556488,5.41816214,4236.9,4236.8,0.4676]
[1754798556821,1.77020392,4236.8,4236.7,1e-08]
[1754798558416,2.67789042,4236.8,4236.7,1e-08]
[1754798558778,3.59259042,4236.8,4236.7,1e-08]
[1754798559473,2.67789042,4236.8,4236.7,1e-08]
[1754798559790,3.59259042,4236.8,4236.7,1e-08]
[1754798560873,3.13829042,4236.8,4236.7,1e-08]
[1754798561102,6.32489042,4236.8,4236.7,1e-08]
[1754798565910,5.41620392,4236.8,4236.7,0.46760001]
[1754798566219,5.41620392,4236.8,4236.7,0.96150001]
[1754798566530,5.41620392,4236.8,4236.7,1e-08]
[1754798566691,5.41620392,4236.8,4236.7,0.96150001]
[1754798566891,1.77020392,4236.8,4236.7,0.96150001]
[1754798567307,5.41620392,4236.8,4236.7,0.96150001]
[1754798568029,1.77024571,4236.7,4236.6,1e-08]
[1754798568193,2.32041286,4236.3,4236.2,1e-08]
[1754798568399,5.96541286,4236.3,4236.2,1e-08]
[1754798568707,10.36942686,4236.3,4236.2,1e-08]
[1754798568902,11.58340247,4236.3,4236.2,1e-08]
[1754798570004,7.93840247,4236.3,4236.2,1e-08]
[1754798570331,10.68400247,4236.3,4236.2,1e-08]
[1754798572229,11.58240247,4236.3,4236.2,1e-08]
[1754798574228,0.55,4236.0,4235.6,1e-08]
[1754798574531,5.32066364,4235.7,4235.6,1e-08]
[1754798574730,9.46827764,4235.7,4235.6,1e-08]
[1754798574930,10.36667764,4235.7,4235.6,1e-08]
[1754798575139,11.64337081,4235.7,4235.6,1e-08]
[1754798575324,8.00137081,4235.7,4235.6,1e-08]
[1754798575527,10.74397081,4235.7,4235.6,1e-08]
[1754798576430,11.52887081,4235.7,4235.6,1e-08]
[1754798578102,11.64727081,4235.7,4235.6,1e-08]
[1754798579321,11.52887081,4235.7,4235.6,1e-08]
[1754798579526,11.52887081,4235.7,4234.6,0.04]
[1754798579527,1.77108177,4234.7,4234.6,1e-08]
[1754798579734,1.77108177,4234.7,4234.3,1e-08]
[1754798579735,1.77120725,4234.4,4234.3,1e-08]
[1754798579906,8.96120725,4234.4,4234.3,1e-08]
[1754798580657,8.41120725,4234.4,4234.3,0.94300001]
[1754798580955,5.41120725,4234.4,4234.3,0.94300001]
[1754798581258,5.41220725,4234.4,4234.3,0.94300001]
[1754798581434,1.77085984,4235.3,4234.3,0.94300001]
[1754798581742,1.77120725,4234.4,4234.3,0.48610001]
[1754798581902,5.41220725,4234.4,4234.3,0.48610001]
[1754798582234,5.41220725,4234.4,4234.3,0.94300001]
[1754798582653,5.41220725,4234.4,4234.3,1e-08]
[1754798582833,1.77120725,4234.4,4234.3,0.45690001]
[1754798583031,5.41220725,4234.4,4234.3,1e-08]
[1754798583231,6.68054317,4234.4,4234.3,1e-08]
[1754798583549,6.13154317,4234.4,4234.3,1e-08]
[1754798583747,5.41320725,4234.4,4234.3,0.94300001]
[1754798583928,5.41420725,4234.4,4234.3,0.94300001]
[1754798584541,5.41320725,4234.4,4234.3,0.94300001]
[1754798585838,1.77116764,4234.5,4234.3,0.94300001]
[1754798586009,3.642,4234.4,4234.3,1e-08]
[1754798586410,5.41320725,4234.4,4234.3,1e-08]
[1754798586643,5.41320725,4234.4,4234.3,0.94300001]
[1754798587038,3.642,4234.4,4234.3,0.94300001]
[1754798587242,5.41320725,4234.4,4234.3,0.94300001]
[1754798588509,5.41320725,4234.4,4234.3,1e-08]
[1754798588806,7.58004097,4234.4,4234.3,1e-08]
[1754798589006,6.13164097,4234.4,4234.3,1e-08]
[1754798589357,6.13164097,4234.4,4233.6,1e-08]
[1754798589358,1.7715001,4233.7,4233.6,1e-08]
[1754798589521,1.77124908,4234.3,4233.6,0.48610001]
[1754798589723,1.7715001,4233.7,4233.6,0.48610001]
[1754798589938,3.649,4233.9,4233.6,0.48610001]
[1754798590170,0.1184,4233.8,4233.6,0.94300001]
[1754798590470,0.1184,4233.8,4233.7,0.943]
[1754798590674,0.1184,4234.1,4233.7,1.21445673]
[1754798590831,0.1184,4234.1,4233.8,0.943]
[1754798591162,1.77137458,4234.0,4233.9,0.943]
[1754798591358,1.77137458,4234.0,4233.6,1e-08]
[1754798591359,1.7715001,4233.7,4233.6,1e-08]
[1754798591564,5.5409001,4233.7,4233.6,1e-08]
[1754798591764,2.62113175,4233.7,4233.6,1e-08]
[1754798592066,5.5459001,4233.7,4233.6,0.94300001]
[1754798592655,3.7744,4233.7,4233.6,0.94300001]
[1754798593258,0.1184,4233.7,4233.6,0.94300001]
[1754798593429,3.7744,4233.7,4233.6,0.94300001]
[1754798594860,5.5459001,4233.7,4233.6,0.94300001]
[1754798595042,3.7744,4233.7,4233.6,0.94300001]
[1754798595766,0.1184,4233.7,4233.6,0.94300001]
[1754798596133,1.7712566,4234.3,4233.6,0.94300001]
[1754798596332,0.1184,4234.2,4233.7,0.943]
[1754798596532,0.1184,4234.2,4233.8,0.943]
[1754798596752,0.1184,4234.2,4233.9,0.943]
[1754798597033,0.1184,4234.2,4234.0,1.21445001]
[1754798597235,0.1184,4234.8,4234.4,1.77116822]
[1754798597446,0.1184,4234.8,4234.5,0.9004]
[1754798597757,3.655,4235.4,4234.6,0.02361498]
[1754798598065,0.1184,4235.1,4234.8,1.77102873]
[1754798598264,0.1184,4235.1,4234.9,0.9004]
[1754798598672,0.1184,4235.1,4235.0,0.9004]
[1754798600970,1.8893145,4235.1,4235.0,0.9004]
[1754798601172,0.1184,4235.1,4235.0,0.9004]
[1754798602242,0.1184,4235.1,4234.5,0.5707]
[1754798602450,0.1184,4235.1,4233.7,1.7714992]
[1754798602451,0.002,4235.5,4234.1,0.4481]
[1754798602652,0.002,4235.5,4234.5,1.88955623]
[1754798602653,0.1184,4235.1,4234.5,1.88955623]
[1754798602942,0.1184,4235.1,4234.6,0.9004]
[1754798603146,1.88931797,4235.1,4234.6,0.9004]
[1754798603347,1.88931797,4235.1,4234.7,0.9004]
[1754798603690,0.1184,4235.1,4234.8,0.9004]
[1754798603982,0.1184,4235.1,4234.9,0.9004]
[1754798604492,0.1184,4235.1,4234.5,0.1184]
[1754798604644,0.1184,4235.1,4234.5,0.5665]
[1754798605053,0.1184,4235.1,4234.5,1.007384]
[1754798605289,1.88935047,4235.1,4234.5,0.5665]
[1754798605467,0.1184,4235.1,4234.5,0.1184]
[1754798605654,0.1184,4234.6,4234.3,0.4481]
[1754798605855,0.1184,4234.6,4234.1,3.0]
[1754798605856,0.1184,4234.6,4234.4,0.9004]
[1754798606357,0.1184,4234.6,4234.5,0.9004]
[1754798606987,0.1184,4234.6,4234.0,3.7694]
[1754798606988,0.1184,4234.6,4234.0,3.1184]
[1754798607292,0.1184,4234.6,4234.1,0.4481]
[1754798607504,0.1184,4234.6,4234.1,0.92401777]
[1754798607650,0.1184,4234.6,4234.2,0.9004]
[1754798607858,0.1184,4234.6,4234.3,0.9004]
[1754798608164,0.1184,4234.4,4233.8,0.1184]
[1754798608495,1.77148836,4233.8,4233.6,1e-08]
[1754798608693,1.88982962,4233.9,4233.6,1e-08]
[1754798608871,0.1184,4233.9,4233.6,0.44810001]
[1754798609070,1.77145826,4233.8,4233.6,0.44810001]
[1754798609254,0.1184,4233.9,4233.7,0.9004]
[1754798609775,0.1184,4233.9,4233.8,0.9004]
[1754798612064,1.88981642,4233.9,4233.8,0.9004]
[1754798612357,0.1184,4233.9,4233.6,1e-08]
[1754798612558,0.1184,4233.9,4233.7,0.9004]
[1754798612776,1.8898188,4233.9,4233.7,0.9004]
[1754798613469,1.77145826,4233.8,4233.6,1e-08]
[1754798613856,1.77146094,4233.8,4233.6,1e-08]
[1754798614159,0.1184,4233.9,4233.7,0.4481]
[1754798614571,1.8898189,4233.9,4233.7,0.4481]
[1754798615402,0.70906,4234.5,4233.6,0.02362056]
[1754798615567,1.88969697,4234.2,4233.8,0.9004]
[1754798615772,1.88969697,4234.2,4233.6,0.11840001]
[1754798615773,1.88969697,4234.2,4233.9,0.9004]
[1754798615967,1.88969697,4234.2,4234.0,0.4481]
[1754798616355,0.1184,4234.2,4234.1,0.4481]
[1754798617789,0.1184,4234.5,4234.1,0.9004]
[1754798618099,1.8895666,4234.5,4234.2,0.9004]
[1754798618269,0.1184,4234.5,4234.3,0.9004]
[1754798618475,0.1184,4234.5,4234.4,0.9004]
[1754798618877,1.7710853,4234.7,4234.4,0.9004]
[1754798619097,1.77112655,4234.6,4234.4,0.4523]
[1754798619277,1.77112655,4234.6,4234.5,0.4481]
[1754798619982,1.88948947,4234.7,4234.1,0.63218424]
[1754798620186,0.1184,4234.7,4234.2,0.88815842]
[1754798620386,0.1184,4234.7,4234.2,0.44005842]
[1754798620587,0.1184,4234.7,4234.3,0.9004]
[1754798620784,1.7711284,4234.6,4234.4,0.9004]
[1754798620989,1.88951168,4234.7,4234.5,0.4481]
[1754798621292,1.7711236,4234.6,4234.5,0.4481]
[1754798621774,1.88948663,4234.7,4234.5,0.4481]
[1754798622299,1.77099246,4235.0,4234.2,0.44005842]
[1754798622597,1.77099246,4235.0,4234.6,0.9004]
[1754798622598,1.88938056,4235.0,4234.6,0.9004]
[1754798622763,0.1184,4235.0,4234.7,0.9004]
[1754798622964,0.1184,4235.0,4234.8,0.9004]
[1754798623196,1.88938046,4235.0,4234.8,0.9004]
[1754798623395,1.77099813,4234.9,4234.8,0.9004]
[1754798624700,0.002,4235.5,4234.8,0.4481]
[1754798624873,0.002,4235.5,4235.2,0.1184]
[1754798625268,1.77083087,4235.3,4233.9,0.4481]
[1754798625466,0.9073,4235.2,4233.9,3.0]
[1754798625671,1.77133441,4234.1,4233.9,3.0]
[1754798626174,1.77129544,4234.2,4233.9,3.0]
[1754798626374,0.9073,4234.7,4233.9,3.0]
[1754798626571,1.7711236,4234.6,4233.9,3.0]
[1754798626772,1.7711236,4234.6,4233.3,0.9004]
[1754798626979,0.9073,4234.5,4232.9,0.4523]
[1754798627197,1.77120725,4234.4,4233.3,3.663]
[1754798627382,1.7715001,4233.7,4233.3,3.663]
[1754798627685,1.7715001,4233.7,4233.4,3.0]
[1754798627981,1.7715001,4233.7,4232.9,0.9004]
[1754798628409,1.7715001,4233.7,4233.2,3.0]
[1754798628578,1.7715001,4233.7,4233.2,6.663]
[1754798629404,1.77146732,4233.8,4233.2,7.093]
[1754798629599,1.77146732,4233.8,4233.2,7.5684]
[1754798629802,0.58873236,4234.6,4233.2,6.663]
[1754798630003,8.80064161,4235.8,4233.7,0.9054]
[1754798630004,0.8864,4234.9,4233.7,0.9054]
[1754798630210,1.77108177,4234.7,4233.7,0.9054]
[1754798630507,0.4359,4234.7,4233.7,0.43]
[1754798630808,1.77132391,4234.2,4233.7,0.43]
[1754798631128,1.77126233,4234.3,4233.8,0.43]
[1754798631305,1.77126233,4234.3,4233.5,1.77157251]
[1754798631498,1.77126233,4234.3,4233.7,0.60715725]
[1754798631892,0.002,4234.6,4233.8,3.664]
[1754798632079,0.002,4234.6,4233.9,0.9054]
[1754798632284,0.002,4233.9,4233.7,0.17715725]
[1754798632512,0.002,4233.9,4233.8,7.07335573]
[1754798632825,0.002,4233.9,4233.8,7.50335573]
[1754798633408,0.002,4233.9,4233.8,9.75021399]
[1754798635092,0.002,4236.1,4234.6,1.77109066]
[1754798635294,0.002,4236.1,4234.9,1.88935839]
[1754798635295,0.1204,4235.5,4234.9,1.88935839]
[1754798635619,1.77079365,4235.4,4235.0,0.73490423]
[1754798635796,0.1204,4235.5,4235.0,0.73490423]
[1754798635988,0.1204,4235.5,4235.1,0.45361219]
[1754798636187,1.89114792,4235.5,4235.1,0.45361219]
[1754798636612,1.89114792,4235.5,4235.1,0.43]
[1754798637291,0.002,4235.2,4235.1,0.43]
[1754798637600,0.002,4235.2,4235.1,0.6082317]
[1754798638290,0.002,4235.2,4235.1,1.0836317]
[1754798638499,0.002,4235.2,4235.1,2.9729462]
[1754798638888,0.002,4235.2,4235.1,6.6389462]
[1754798639527,0.002,4235.2,4235.1,9.6389462]
[1754798639682,0.002,4235.2,4235.1,19.72809883]
[1754798640199,0.002,4235.2,4235.1,20.15969883]
[1754798640394,0.002,4235.2,4235.1,20.27809883]
[1754798642536,0.002,4235.5,4235.4,1.77078906]
[1754798642723,0.002,4235.5,4235.4,9.70992513]
[1754798642900,0.002,4235.9,4235.8,2.32062184]
[1754798643102,0.002,4235.9,4235.8,19.19517447]
[1754798643431,0.002,4235.9,4235.8,20.10057447]
[1754798643805,0.002,4236.1,4236.0,2.32053824]
[1754798644004,0.002,4236.1,4236.0,5.75250114]
[1754798644246,0.002,4236.1,4236.0,5.72889397]
[1754798644402,0.002,4236.1,4236.0,6.63429397]
[1754798644608,0.04,4236.9,4236.7,2.32024571]
[1754798644901,0.04,4236.9,4236.7,19.19479834]
[1754798645215,0.04,4236.9,4236.7,20.83510257]
[1754798646352,1.77220392,4236.8,4236.0,0.40835573]
[1754798646637,0.002,4236.8,4235.9,3.0]
[1754798646836,0.002,4236.8,4236.1,3.0]
[1754798647036,0.002,4236.8,4236.2,0.57360606]
[1754798647237,0.002,4236.8,4236.4,3.0]
[1754798647439,0.002,4236.8,4236.7,1.77024571]
[1754798647606,0.002,4237.3,4237.0,0.55]
[1754798647807,0.002,4237.7,4237.6,1.76986973]
[1754798648006,0.002,4237.7,4237.6,9.03646799]
[1754798648209,0.002,4237.7,4237.6,11.00358633]
[1754798649734,0.002,4237.7,4237.6,8.3263166]
[1754798650142,0.002,4237.7,4237.6,7.7763166]
[1754798651531,1.77182797,4237.7,4237.6,3.0]
[1754798651733,0.8884,4237.7,4236.3,10.08915263]
[1754798651943,1.77015155,4237.0,4236.4,3.69]
[1754798652143,1.77015155,4237.0,4236.5,3.0]
[1754798652430,0.002,4237.7,4236.9,1.77016214]